[Event "7th Altibox Norway Chess 2019"]
[Site "Stavanger"]
[Date "2019.06.10"]
[Round "6.5"]
[White "Grischuk, Alexander"]
[Black "Caruana, Fabiano"]
[Result "1/2-1/2"]
[ECO "B33"]
[WhiteElo "2775"]
[BlackElo "2819"]
[Annotator "ChessBase"]
[PlyCount "85"]
[EventDate "2019.06.04"]
[EventType "tourn"]
[EventCountry "NOR"]
[SourceTitle "playchess.com"]
[Source "ChessBase"]
[SourceQuality "1"]
[TimeControl "60/7200:0"]

1. e4 {[%emt 0:00:05]} c5 {[%emt 0:00:07]} 2. Nf3 {[%emt 0:00:04]} Nc6 {[%emt 0:00:04]} 3. d4 {[%emt 0:00:18]} cxd4 {[%emt 0:00:06]} 4. Nxd4 {[%emt 0:00:02]} Nf6 {[%emt 0:00:07]} 5. Nc3 {[%emt 0:00:03]} e5 {[%emt 0:00:06]} 6. Ndb5 {[%emt 0:00:04]} d6 {[%emt 0:00:04]} 7. Bg5 {[%emt 0:00:04]} a6 {[%emt 0:00:09]} 8. Na3 {[%emt 0:00:04]} b5 {[%emt 0:00:05]} 9. Nd5 {[%emt 0:00:05]} Be7 {[%emt 0:00:06]} 10. Bxf6 {[%emt 0:00:03]} Bxf6 {[%emt 0:00:04]} 11. c3 {[%emt 0:00:06]} Rb8 {[%emt 0:01:04]} 12. Nc2 {[%emt 0:00:06]} Bg5 {[%emt 0:00:07]} 13. a4 {[%emt 0:00:29]} bxa4 {[%emt 0:00:39]} 14. Ncb4 {[%emt 0:00:12]} Nxb4 {[%emt 0:01:24]} 15. Nxb4 {[%emt 0:00:25]} Bd7 {[%emt 0:12:20]} 16. Bxa6 {[%emt 0:00:45]} Qa5 {[%emt 0:02:24]} 17. Qxd6 {[%emt 0:00:44]} Rb6 {[%emt 0:00:58]} 18. Qd3 {[%emt 0:00:08]} Be6 {[%emt 0:04:37]} 19. O-O {[%emt 0:00:26]} Be7 {[%emt 0:06:10]} 20. Bc4 {[%emt 0:10:15]} Bxb4 {[%emt 0:17:11]} 21. Bxe6 {[%emt 0:02:56]} Rxe6 {[%emt 0:03:46]} 22. cxb4 {[%emt 0:05:36]} Qxb4 {[%emt 0:00:05]} 23. Qc2 {[%emt 0:01:26]} O-O {[%emt 0:00:13]} 24. Rxa4 {[%emt 0:00:05]} Qb7 {[%emt 0:00:30]} 25. Qc3 {[%emt 0:11:38]} Rb6 {[%emt 0:03:25]} 26. Qxe5 {[%emt 0:02:30]} Rxb2 {[%emt 0:00:21]} 27. Rd4 {[%emt 0:01:21]} h6 {[%emt 0:03:26]} 28. h4 {[%emt 0:01:37]} Rb1 {[%emt 0:05:19]} 29. g4 {[%emt 0:40:56]} Rxf1+ {[%emt 0:07:32]} 30. Kxf1 {[%emt 0:00:20]} Qc8 {[%emt 0:00:10]} 31. Qg3 {[%emt 0:00:33]} Re8 {[%emt 0:05:45]} 32. Kg2 {[%emt 0:04:44]} Qc6 {[%emt 0:02:21]} 33. Qd3 {[%emt 0:03:55]} Qf6 {[%emt 0:09:40]} 34. h5 {[%emt 0:01:23]} Qg5 {[%emt 0:00:29]} 35. Qf3 {[%emt 0:02:04]} Qf6 {[%emt 0:00:14]} 36. Rd3 {[%emt 0:03:10]} Qc6 {[%emt 0:02:56]} 37. Rd4 {[%emt 0:04:04]} Qf6 {[%emt 0:00:04]} 38. Rb4 {[%emt 0:00:47]} Qd6 {[%emt 0:00:53]} 39. Qb3 {[%emt 0:00:26]} Qd7 {[%emt 0:01:35]} 40. Qg3 {[%emt 0:02:51]} Qe7 {[%emt 0:00:21]} 41. Qb3 {[%emt 0:02:16]} Qd7 {[%emt 0:01:01]} 42. Kf3 {[%emt 0:00:13]} Qd6 {[%emt 0:01:22]} 43. Kg2 {[%emt 0:05:08]} 1/2-1/2